[Event "Late-Titled-Tuesday-Blitz-January-23-2024"]
[Site "Chess.com"]
[Date "2024.01.23"]
[Round "4"]
[White "karinachess1"]
[Black "toninhojit"]
[Result "1/2-1/2"]
[WhiteElo "2623"]
[BlackElo "2477"]
[TimeControl "180+1"]
[EndTime "14:39:16 PST"]
[Termination "Game drawn - insufficient material"]

1. d4 {[%clk 0:03:00.9]} 1... Nf6 {[%clk 0:02:59.7]} 2. c4 {[%clk 0:03:01.1]}
2... c5 {[%clk 0:03:00]} 3. d5 {[%clk 0:03:01.2]} 3... e6 {[%clk 0:03:00.7]} 4.
Nc3 {[%clk 0:03:01.4]} 4... exd5 {[%clk 0:03:01.3]} 5. cxd5 {[%clk 0:03:02.3]}
5... d6 {[%clk 0:03:01.9]} 6. Nf3 {[%clk 0:03:02.9]} 6... g6 {[%clk 0:03:02.5]}
7. e4 {[%clk 0:03:03.3]} 7... Bg7 {[%clk 0:03:02.2]} 8. Be2 {[%clk 0:03:03.9]}
8... Bg4 {[%clk 0:03:01.8]} 9. Nd2 {[%clk 0:03:00.7]} 9... Bxe2 {[%clk
0:03:00.8]} 10. Qxe2 {[%clk 0:03:01.6]} 10... O-O {[%clk 0:03:01.2]} 11. O-O
{[%clk 0:03:01.7]} 11... Re8 {[%clk 0:02:58.9]} 12. f3 {[%clk 0:02:58.3]} 12...
Nh5 {[%clk 0:02:50.9]} 13. Nc4 {[%clk 0:02:57.2]} 13... Na6 {[%clk 0:02:37.5]}
14. Be3 {[%clk 0:02:48.5]} 14... Nc7 {[%clk 0:02:37.3]} 15. a4 {[%clk
0:02:48.4]} 15... Na6 {[%clk 0:02:36.5]} 16. g4 {[%clk 0:02:42.6]} 16... Nf6
{[%clk 0:02:35.8]} 17. Bf4 {[%clk 0:02:39]} 17... Nb4 {[%clk 0:02:32.2]} 18.
Rad1 {[%clk 0:02:29]} 18... Bf8 {[%clk 0:02:25.5]} 19. Qg2 {[%clk 0:02:21.7]}
19... Qc7 {[%clk 0:02:05.7]} 20. Nb5 {[%clk 0:02:19.8]} 20... Qd7 {[%clk
0:01:57.5]} 21. Nbxd6 {[%clk 0:02:16.8]} 21... Qxa4 {[%clk 0:01:49.4]} 22. Nxe8
{[%clk 0:02:15.3]} 22... Rxe8 {[%clk 0:01:50.3]} 23. d6 {[%clk 0:02:06.5]} 23...
Nbd5 {[%clk 0:01:41.4]} 24. exd5 {[%clk 0:01:45.7]} 24... Qxc4 {[%clk
0:01:39.8]} 25. Qd2 {[%clk 0:01:46.4]} 25... Bg7 {[%clk 0:01:02.4]} 26. Rc1
{[%clk 0:01:37.3]} 26... Qxd5 {[%clk 0:00:58.5]} 27. g5 {[%clk 0:00:57.3]} 27...
Qxd2 {[%clk 0:00:51]} 28. Bxd2 {[%clk 0:00:58.2]} 28... Nd5 {[%clk 0:00:49.7]}
29. Bc3 {[%clk 0:00:58.6]} 29... Nxc3 {[%clk 0:00:34.2]} 30. bxc3 {[%clk
0:00:59.5]} 30... Rd8 {[%clk 0:00:34.8]} 31. Rfd1 {[%clk 0:00:56.2]} 31... Rd7
{[%clk 0:00:33.9]} 32. Rd5 {[%clk 0:00:55]} 32... b6 {[%clk 0:00:33.4]} 33. Re1
{[%clk 0:00:54.4]} 33... Bf8 {[%clk 0:00:29]} 34. Red1 {[%clk 0:00:48.9]} 34...
Bg7 {[%clk 0:00:26.5]} 35. c4 {[%clk 0:00:37.8]} 35... Bd4+ {[%clk 0:00:24.8]}
36. Kg2 {[%clk 0:00:38.3]} 36... Kf8 {[%clk 0:00:25]} 37. Re1 {[%clk 0:00:35.7]}
37... Rd8 {[%clk 0:00:10.8]} 38. d7 {[%clk 0:00:34.6]} 38... a5 {[%clk
0:00:06.5]} 39. Re2 {[%clk 0:00:34.6]} 39... a4 {[%clk 0:00:06.8]} 40. Ra2
{[%clk 0:00:34.7]} 40... Ke7 {[%clk 0:00:06.4]} 41. Rxa4 {[%clk 0:00:32.3]}
41... Rxd7 {[%clk 0:00:07]} 42. Rxd7+ {[%clk 0:00:25.4]} 42... Kxd7 {[%clk
0:00:07.9]} 43. Ra7+ {[%clk 0:00:26.1]} 43... Ke6 {[%clk 0:00:08.5]} 44. Rb7
{[%clk 0:00:26.6]} 44... Kf5 {[%clk 0:00:06.8]} 45. Rxf7+ {[%clk 0:00:22.5]}
45... Kxg5 {[%clk 0:00:07.4]} 46. Rxh7 {[%clk 0:00:22.9]} 46... Kf4 {[%clk
0:00:04.3]} 47. Rb7 {[%clk 0:00:21.5]} 47... Ke3 {[%clk 0:00:04.4]} 48. Rxb6
{[%clk 0:00:20.6]} 48... g5 {[%clk 0:00:05]} 49. Rg6 {[%clk 0:00:20.2]} 49...
Kd3 {[%clk 0:00:05.7]} 50. Rxg5 {[%clk 0:00:20.7]} 50... Kxc4 {[%clk 0:00:05.7]}
51. h4 {[%clk 0:00:21.3]} 51... Kd3 {[%clk 0:00:05.8]} 52. h5 {[%clk 0:00:20.5]}
52... c4 {[%clk 0:00:06.4]} 53. h6 {[%clk 0:00:05.8]} 53... c3 {[%clk 0:00:07]}
54. Rh5 {[%clk 0:00:06.2]} 54... c2 {[%clk 0:00:07]} 55. Rh1 {[%clk 0:00:06.3]}
55... Kd2 {[%clk 0:00:04.8]} 56. Kg3 {[%clk 0:00:06.3]} 56... c1=Q {[%clk
0:00:05.3]} 57. Rxc1 {[%clk 0:00:06.4]} 57... Kxc1 {[%clk 0:00:06.2]} 58. Kf4
{[%clk 0:00:06.1]} 58... Kd2 {[%clk 0:00:06.5]} 59. Ke4 {[%clk 0:00:06.7]} 59...
Bh8 {[%clk 0:00:05.3]} 60. f4 {[%clk 0:00:07.2]} 60... Kc3 {[%clk 0:00:05.9]}
61. f5 {[%clk 0:00:06.9]} 61... Kc4 {[%clk 0:00:06.3]} 62. Kf4 {[%clk
0:00:06.8]} 62... Kd5 {[%clk 0:00:06.9]} 63. Kg5 {[%clk 0:00:07.7]} 63... Kd6
{[%clk 0:00:06.1]} 64. Kg6 {[%clk 0:00:07.1]} 64... Ke7 {[%clk 0:00:06.3]} 65.
Kh7 {[%clk 0:00:06.8]} 65... Bf6 {[%clk 0:00:06.7]} 66. Kg8 {[%clk 0:00:06.9]}
66... Be5 {[%clk 0:00:07.1]} 67. h7 {[%clk 0:00:06.8]} 67... Bf6 {[%clk
0:00:07.7]} 68. h8=Q {[%clk 0:00:06.2]} 68... Bxh8 {[%clk 0:00:08]} 69. Kxh8
{[%clk 0:00:07.1]} 69... Kf6 {[%clk 0:00:08.8]} 70. Kh7 {[%clk 0:00:07.5]} 70...
Kxf5 {[%clk 0:00:09.7]} 1/2-1/2

[Event "Late-Titled-Tuesday-Blitz-January-23-2024"]
[Site "Chess.com"]
[Date "2024.01.23"]
[Round "4"]
[White "BeanScreen"]
[Black "sergoy"]
[Result "0-1"]
[WhiteElo "2736"]
[BlackElo "3033"]
[TimeControl "180+1"]
[EndTime "14:39:20 PST"]
[Termination "sergoy won on time"]

1. e4 {[%clk 0:03:00.9]} 1... c5 {[%clk 0:03:00.2]} 2. c3 {[%clk 0:03:00.7]}
2... Nf6 {[%clk 0:02:59.8]} 3. e5 {[%clk 0:03:01]} 3... Nd5 {[%clk 0:03:00.6]}
4. Nf3 {[%clk 0:03:01.7]} 4... e6 {[%clk 0:03:00.3]} 5. d4 {[%clk 0:03:01.1]}
5... cxd4 {[%clk 0:03:00.9]} 6. cxd4 {[%clk 0:03:01.6]} 6... d6 {[%clk
0:03:00.3]} 7. Bc4 {[%clk 0:03:01.4]} 7... Nc6 {[%clk 0:03:00.6]} 8. O-O {[%clk
0:03:00.5]} 8... Be7 {[%clk 0:03:01.3]} 9. Qe2 {[%clk 0:02:59.9]} 9... O-O
{[%clk 0:03:01.6]} 10. Nc3 {[%clk 0:02:59.7]} 10... Nxc3 {[%clk 0:03:01.1]} 11.
bxc3 {[%clk 0:02:59.7]} 11... dxe5 {[%clk 0:03:01.8]} 12. dxe5 {[%clk
0:02:59.9]} 12... Qa5 {[%clk 0:03:02.5]} 13. Rb1 {[%clk 0:02:58.3]} 13... Rd8
{[%clk 0:03:00.8]} 14. h4 {[%clk 0:02:55.3]} 14... Qxc3 {[%clk 0:02:45]} 15. h5
{[%clk 0:02:51.2]} 15... h6 {[%clk 0:02:38.8]} 16. Rb3 {[%clk 0:02:45]} 16...
Qa5 {[%clk 0:02:36.8]} 17. Bd3 {[%clk 0:02:44.1]} 17... Qa4 {[%clk 0:02:31.1]}
18. Bb2 {[%clk 0:02:04.6]} 18... Qg4 {[%clk 0:02:23.9]} 19. Bb1 {[%clk
0:01:28.8]} 19... Qxh5 {[%clk 0:02:02.3]} 20. Qc2 {[%clk 0:01:28.4]} 20... g6
{[%clk 0:01:51.5]} 21. g3 {[%clk 0:01:14.6]} 21... Bd7 {[%clk 0:01:44]} 22. Kg2
{[%clk 0:01:13.4]} 22... Na5 {[%clk 0:01:39.6]} 23. Rh1 {[%clk 0:01:11.5]} 23...
Qg4 {[%clk 0:01:39.3]} 24. Qd2 {[%clk 0:00:44.1]} 24... Bf8 {[%clk 0:01:00.1]}
25. Qxa5 {[%clk 0:00:43.4]} 25... Bc6 {[%clk 0:01:00.7]} 26. Rh4 {[%clk
0:00:40]} 26... Qg5 {[%clk 0:01:00.9]} 27. Be4 {[%clk 0:00:29.4]} 27... Qe7
{[%clk 0:00:56]} 28. Bxc6 {[%clk 0:00:28.3]} 28... bxc6 {[%clk 0:00:56.9]} 29.
Bc1 {[%clk 0:00:24]} 29... g5 {[%clk 0:00:51.3]} 30. Rg4 {[%clk 0:00:20.4]}
30... Rd5 {[%clk 0:00:50.1]} 31. Qc3 {[%clk 0:00:19.6]} 31... Bg7 {[%clk
0:00:50.1]} 32. Qxc6 {[%clk 0:00:17.2]} 32... Rad8 {[%clk 0:00:46.2]} 33. Ba3
{[%clk 0:00:16.2]} 33... Qd7 {[%clk 0:00:41.6]} 34. Qxd7 {[%clk 0:00:16.4]}
34... R8xd7 {[%clk 0:00:42.5]} 35. Re4 {[%clk 0:00:13.6]} 35... Ra5 {[%clk
0:00:41.3]} 36. Re2 {[%clk 0:00:12.6]} 36... g4 {[%clk 0:00:40.3]} 37. Nh2
{[%clk 0:00:12.2]} 37... h5 {[%clk 0:00:40.5]} 38. Bd6 {[%clk 0:00:11.6]} 38...
Rd5 {[%clk 0:00:33.2]} 39. Nf1 {[%clk 0:00:11]} 39... Kh7 {[%clk 0:00:30.5]} 40.
Ne3 {[%clk 0:00:11.3]} 40... Rd4 {[%clk 0:00:31.1]} 41. Nc2 {[%clk 0:00:09.5]}
41... Rd5 {[%clk 0:00:29.2]} 42. Nb4 {[%clk 0:00:09.5]} 42... Rd1 {[%clk
0:00:29.5]} 43. Nc6 {[%clk 0:00:08]} 43... Bh6 {[%clk 0:00:26.2]} 44. Rb8 {[%clk
0:00:06.3]} 44... Rc1 {[%clk 0:00:22]} 45. Ne7 {[%clk 0:00:05.3]} 45... Bg5
{[%clk 0:00:20.7]} 46. Ng8 {[%clk 0:00:04.8]} 46... a5 {[%clk 0:00:18.1]} 47.
Reb2 {[%clk 0:00:03.8]} 47... a4 {[%clk 0:00:15.1]} 48. Ra8 {[%clk 0:00:04]}
48... Kg6 {[%clk 0:00:13.2]} 49. Rbb8 {[%clk 0:00:04.3]} 49... Kf5 {[%clk
0:00:13.7]} 50. Rb6 {[%clk 0:00:04]} 50... h4 {[%clk 0:00:11.1]} 51. gxh4 {[%clk
0:00:03.4]} 51... Bxh4 {[%clk 0:00:12]} 52. Nh6+ {[%clk 0:00:03.3]} 52... Kg5
{[%clk 0:00:12.6]} 53. Ng8 {[%clk 0:00:02.3]} 53... Rc2 {[%clk 0:00:13.1]} 54.
Nf6 {[%clk 0:00:02.7]} 54... Rxf2+ {[%clk 0:00:12.5]} 55. Kg1 {[%clk 0:00:03.5]}
55... Rc2 {[%clk 0:00:08.2]} 56. Rxa4 {[%clk 0:00:03.5]} 56... Bf2+ {[%clk
0:00:08]} 57. Kf1 {[%clk 0:00:02.9]} 57... Bxb6 {[%clk 0:00:08.4]} 58. Rxg4+
{[%clk 0:00:03.1]} 58... Kf5 {[%clk 0:00:08.8]} 59. Rb4 {[%clk 0:00:03.2]} 59...
Rb7 {[%clk 0:00:08.8]} 60. Ne8 {[%clk 0:00:02.4]} 60... Ra7 {[%clk 0:00:06.7]}
61. Rxb6 {[%clk 0:00:02]} 61... Raxa2 {[%clk 0:00:07.1]} 62. Rb1 {[%clk
0:00:01.7]} 62... Rh2 {[%clk 0:00:07.2]} 63. Kg1 {[%clk 0:00:02]} 63... Rag2+
{[%clk 0:00:07.6]} 64. Kf1 {[%clk 0:00:02.6]} 64... Rg8 {[%clk 0:00:06.8]} 0-1

[Event "Late-Titled-Tuesday-Blitz-January-23-2024"]
[Site "Chess.com"]
[Date "2024.01.23"]
[Round "4"]
[White "kai_nov"]
[Black "StellarChess"]
[Result "0-1"]
[WhiteElo "2297"]
[BlackElo "2486"]
[TimeControl "180+1"]
[EndTime "14:39:34 PST"]
[Termination "StellarChess won by checkmate"]

1. d4 {[%clk 0:03:00.9]} 1... Nf6 {[%clk 0:02:58.1]} 2. c4 {[%clk 0:03:00.6]}
2... b6 {[%clk 0:02:54]} 3. Nc3 {[%clk 0:02:58.3]} 3... Bb7 {[%clk 0:02:52.1]}
4. d5 {[%clk 0:02:57.7]} 4... e5 {[%clk 0:02:42.5]} 5. a3 {[%clk 0:02:57.6]}
5... d6 {[%clk 0:02:38]} 6. g3 {[%clk 0:02:57.6]} 6... g6 {[%clk 0:02:37.5]} 7.
Bg2 {[%clk 0:02:57.8]} 7... Bg7 {[%clk 0:02:38]} 8. Nf3 {[%clk 0:02:55.4]} 8...
O-O {[%clk 0:02:38.5]} 9. O-O {[%clk 0:02:55.6]} 9... Re8 {[%clk 0:02:38.1]} 10.
b3 {[%clk 0:02:47.9]} 10... Nbd7 {[%clk 0:02:28.6]} 11. Bb2 {[%clk 0:02:46.5]}
11... a6 {[%clk 0:02:15.9]} 12. Qc2 {[%clk 0:02:39.7]} 12... Qe7 {[%clk
0:02:15.3]} 13. e4 {[%clk 0:02:34.2]} 13... Nh5 {[%clk 0:02:10.5]} 14. b4 {[%clk
0:02:24.8]} 14... Rf8 {[%clk 0:02:09.3]} 15. Rae1 {[%clk 0:02:02.8]} 15... Rae8
{[%clk 0:01:57.5]} 16. Bc1 {[%clk 0:01:44.8]} 16... h6 {[%clk 0:01:54.7]} 17.
Nh4 {[%clk 0:01:31.1]} 17... Bc8 {[%clk 0:01:29.9]} 18. Bh3 {[%clk 0:01:24.5]}
18... Ndf6 {[%clk 0:01:27.9]} 19. Bxc8 {[%clk 0:01:22.6]} 19... Rxc8 {[%clk
0:01:28.8]} 20. Ng2 {[%clk 0:00:48.9]} 20... Qd7 {[%clk 0:01:21.2]} 21. Ne3
{[%clk 0:00:35.9]} 21... Ng4 {[%clk 0:01:16]} 22. Nxg4 {[%clk 0:00:33.2]} 22...
Qxg4 {[%clk 0:01:16.9]} 23. f3 {[%clk 0:00:33.1]} 23... Qd7 {[%clk 0:01:17.5]}
24. Qe2 {[%clk 0:00:25.2]} 24... f5 {[%clk 0:01:13.5]} 25. exf5 {[%clk
0:00:21.1]} 25... gxf5 {[%clk 0:01:08.9]} 26. Bd2 {[%clk 0:00:17.6]} 26... Rce8
{[%clk 0:01:05.1]} 27. Qg2 {[%clk 0:00:14]} 27... Qf7 {[%clk 0:01:00.7]} 28. Qh3
{[%clk 0:00:11.5]} 28... Kh7 {[%clk 0:00:56.7]} 29. Nd1 {[%clk 0:00:09.4]} 29...
Rg8 {[%clk 0:00:56.8]} 30. Kh1 {[%clk 0:00:08.6]} 30... Qg6 {[%clk 0:00:51.7]}
31. Nf2 {[%clk 0:00:07.8]} 31... Nf6 {[%clk 0:00:47]} 32. Re2 {[%clk 0:00:06.3]}
32... Rgf8 {[%clk 0:00:43.6]} 33. Rfe1 {[%clk 0:00:06.4]} 33... Re7 {[%clk
0:00:39.6]} 34. Nd3 {[%clk 0:00:04.9]} 34... f4 {[%clk 0:00:36.3]} 35. Nxf4
{[%clk 0:00:04.2]} 35... exf4 {[%clk 0:00:21.7]} 36. Rxe7 {[%clk 0:00:05.1]}
36... Qd3 {[%clk 0:00:22.5]} 37. Bxf4 {[%clk 0:00:03.6]} 37... Qxf3+ {[%clk
0:00:22.7]} 38. Qg2 {[%clk 0:00:03.7]} 38... Qc3 {[%clk 0:00:19.5]} 39. Qd2
{[%clk 0:00:03.4]} 39... Qxc4 {[%clk 0:00:17.4]} 40. Bxh6 {[%clk 0:00:03.5]}
40... Rg8 {[%clk 0:00:11.6]} 41. Bxg7 {[%clk 0:00:03.7]} 41... Rxg7 {[%clk
0:00:12.5]} 42. Rxg7+ {[%clk 0:00:04.2]} 42... Kxg7 {[%clk 0:00:13.4]} 43. Qg5+
{[%clk 0:00:04.4]} 43... Kf7 {[%clk 0:00:13.3]} 44. Qf5 {[%clk 0:00:03.1]} 44...
Qxd5+ {[%clk 0:00:13.5]} 45. Qxd5+ {[%clk 0:00:03.2]} 45... Nxd5 {[%clk
0:00:14.4]} 46. Rc1 {[%clk 0:00:02.7]} 46... c5 {[%clk 0:00:14.3]} 47. Kg2
{[%clk 0:00:02.7]} 47... Ke6 {[%clk 0:00:13.9]} 48. bxc5 {[%clk 0:00:02.2]}
48... dxc5 {[%clk 0:00:14]} 49. h4 {[%clk 0:00:02.9]} 49... b5 {[%clk
0:00:13.8]} 50. h5 {[%clk 0:00:02.9]} 50... c4 {[%clk 0:00:13.9]} 51. h6 {[%clk
0:00:03]} 51... Nf6 {[%clk 0:00:13.7]} 52. Re1+ {[%clk 0:00:02.3]} 52... Kf7
{[%clk 0:00:12.7]} 53. Rf1 {[%clk 0:00:02.6]} 53... Kg6 {[%clk 0:00:12.9]} 54.
g4 {[%clk 0:00:02.5]} 54... Nxg4 {[%clk 0:00:12.2]} 55. h7 {[%clk 0:00:01.9]}
55... Kxh7 {[%clk 0:00:11.7]} 56. Kf3 {[%clk 0:00:02.2]} 56... Nh2+ {[%clk
0:00:11.1]} 57. Ke2 {[%clk 0:00:02.1]} 57... Nxf1 {[%clk 0:00:12]} 58. Kxf1
{[%clk 0:00:03]} 58... Kg6 {[%clk 0:00:12.3]} 59. Ke2 {[%clk 0:00:03.5]} 59...
Kf5 {[%clk 0:00:12.8]} 60. Ke3 {[%clk 0:00:04.4]} 60... Ke5 {[%clk 0:00:13.3]}
61. Kd2 {[%clk 0:00:04.5]} 61... Kd5 {[%clk 0:00:13.9]} 62. Kc2 {[%clk
0:00:05.4]} 62... Kc5 {[%clk 0:00:14.5]} 63. Kc3 {[%clk 0:00:05.8]} 63... a5
{[%clk 0:00:15.2]} 64. Kb2 {[%clk 0:00:06.1]} 64... b4 {[%clk 0:00:16.1]} 65.
Ka2 {[%clk 0:00:06.2]} 65... Kd4 {[%clk 0:00:15.7]} 66. a4 {[%clk 0:00:05.7]}
66... Kc3 {[%clk 0:00:15.2]} 67. Kb1 {[%clk 0:00:05.9]} 67... b3 {[%clk
0:00:15.7]} 68. Ka1 {[%clk 0:00:06.8]} 68... Kb4 {[%clk 0:00:16.2]} 69. Kb2
{[%clk 0:00:06.9]} 69... Kxa4 {[%clk 0:00:16.7]} 70. Ka1 {[%clk 0:00:07.3]}
70... Kb4 {[%clk 0:00:17]} 71. Kb1 {[%clk 0:00:08.2]} 71... a4 {[%clk
0:00:17.7]} 72. Ka1 {[%clk 0:00:08.6]} 72... c3 {[%clk 0:00:16.6]} 73. Kb1
{[%clk 0:00:09.2]} 73... Kc4 {[%clk 0:00:15.7]} 74. Ka1 {[%clk 0:00:09.3]} 74...
Kd3 {[%clk 0:00:16.4]} 75. Kb1 {[%clk 0:00:09.7]} 75... c2+ {[%clk 0:00:16.8]}
76. Kb2 {[%clk 0:00:09.8]} 76... Kd2 {[%clk 0:00:16.9]} 77. Ka3 {[%clk
0:00:09.9]} 77... c1=Q+ {[%clk 0:00:17.5]} 78. Kb4 {[%clk 0:00:10.1]} 78... b2
{[%clk 0:00:17.6]} 79. Ka3 {[%clk 0:00:10.1]} 79... b1=Q+ {[%clk 0:00:17.9]} 80.
Kxa4 {[%clk 0:00:10.6]} 80... Qcb2 {[%clk 0:00:17.4]} 81. Ka5 {[%clk 0:00:10.4]}
81... Qb5# {[%clk 0:00:18]} 0-1

[Event "Late-Titled-Tuesday-Blitz-January-23-2024"]
[Site "Chess.com"]
[Date "2024.01.23"]
[Round "4"]
[White "BardArtem"]
[Black "zverr1"]
[Result "0-1"]
[WhiteElo "2792"]
[BlackElo "2526"]
[TimeControl "180+1"]
[EndTime "14:39:35 PST"]
[Termination "zverr1 won by checkmate"]

1. e4 {[%clk 0:02:59.9]} 1... c5 {[%clk 0:02:59.6]} 2. c3 {[%clk 0:02:59.5]}
2... g6 {[%clk 0:02:59]} 3. d4 {[%clk 0:02:59.1]} 3... cxd4 {[%clk 0:02:59.9]}
4. cxd4 {[%clk 0:03:00]} 4... d5 {[%clk 0:03:00]} 5. e5 {[%clk 0:02:58]} 5... a6
{[%clk 0:03:00]} 6. Nc3 {[%clk 0:02:58.3]} 6... Bg7 {[%clk 0:02:59.5]} 7. h4
{[%clk 0:02:55.9]} 7... h5 {[%clk 0:02:50.3]} 8. Nf3 {[%clk 0:02:54.8]} 8... Nc6
{[%clk 0:02:44.9]} 9. Be2 {[%clk 0:02:52.1]} 9... Bg4 {[%clk 0:02:44.2]} 10. Ng5
{[%clk 0:02:52]} 10... Bxe2 {[%clk 0:02:42.3]} 11. Nxe2 {[%clk 0:02:52.9]} 11...
e6 {[%clk 0:02:39.4]} 12. Be3 {[%clk 0:02:51.3]} 12... Nge7 {[%clk 0:02:39.1]}
13. Nf4 {[%clk 0:02:50.3]} 13... Nf5 {[%clk 0:02:38]} 14. g3 {[%clk 0:02:29.9]}
14... Qe7 {[%clk 0:02:35.6]} 15. O-O {[%clk 0:02:19.9]} 15... Bh6 {[%clk
0:02:21.6]} 16. Ngxe6 {[%clk 0:02:13.6]} 16... fxe6 {[%clk 0:01:50.6]} 17. Nxg6
{[%clk 0:02:12.8]} 17... Qg7 {[%clk 0:01:51.3]} 18. Nxh8 {[%clk 0:01:55.5]}
18... Nxe3 {[%clk 0:01:27.5]} 19. Qxh5+ {[%clk 0:01:51.8]} 19... Kd7 {[%clk
0:01:12.6]} 20. Qf7+ {[%clk 0:01:24.1]} 20... Qxf7 {[%clk 0:01:12.2]} 21. Nxf7
{[%clk 0:01:25]} 21... Nxf1 {[%clk 0:01:11.8]} 22. Rxf1 {[%clk 0:01:25.3]} 22...
Bd2 {[%clk 0:00:48.2]} 23. Rd1 {[%clk 0:01:22.6]} 23... Rf8 {[%clk 0:00:48.9]}
24. Rxd2 {[%clk 0:01:20]} 24... Rxf7 {[%clk 0:00:48.5]} 25. f4 {[%clk
0:01:20.6]} 25... Rg7 {[%clk 0:00:46.4]} 26. Kf2 {[%clk 0:01:20.2]} 26... Ne7
{[%clk 0:00:47]} 27. Rd3 {[%clk 0:01:08.7]} 27... Nf5 {[%clk 0:00:45.3]} 28. Kg2
{[%clk 0:01:07.6]} 28... Nh6 {[%clk 0:00:41.8]} 29. Kh3 {[%clk 0:01:06.8]} 29...
Ng4 {[%clk 0:00:39.1]} 30. Rf3 {[%clk 0:00:50.2]} 30... Rg8 {[%clk 0:00:39.2]}
31. f5 {[%clk 0:00:49.9]} 31... Nh6 {[%clk 0:00:31.4]} 32. fxe6+ {[%clk
0:00:48.8]} 32... Ke7 {[%clk 0:00:31.9]} 33. Rf6 {[%clk 0:00:40.9]} 33... Ng4
{[%clk 0:00:31.9]} 34. Rf4 {[%clk 0:00:40.7]} 34... Ne3 {[%clk 0:00:28.6]} 35.
Rf7+ {[%clk 0:00:35.1]} 35... Kxe6 {[%clk 0:00:28.5]} 36. Rxb7 {[%clk 0:00:36]}
36... Nf5 {[%clk 0:00:23.1]} 37. Rb6+ {[%clk 0:00:33.2]} 37... Ke7 {[%clk
0:00:23.3]} 38. g4 {[%clk 0:00:31.4]} 38... Nxd4 {[%clk 0:00:21.8]} 39. g5
{[%clk 0:00:29.1]} 39... Nf3 {[%clk 0:00:19.6]} 40. Kg4 {[%clk 0:00:20.6]} 40...
Nxe5+ {[%clk 0:00:19.1]} 41. Kf5 {[%clk 0:00:20.2]} 41... Nf3 {[%clk 0:00:18.1]}
42. Kg4 {[%clk 0:00:13.3]} 42... Ne5+ {[%clk 0:00:14.6]} 43. Kf4 {[%clk
0:00:13.6]} 43... Ng6+ {[%clk 0:00:09]} 44. Kg3 {[%clk 0:00:13.9]} 44... Ne5
{[%clk 0:00:08.9]} 45. Rxa6 {[%clk 0:00:13.3]} 45... d4 {[%clk 0:00:09.1]} 46.
Kf4 {[%clk 0:00:12.1]} 46... d3 {[%clk 0:00:05.7]} 47. Kxe5 {[%clk 0:00:04.3]}
47... Rd8 {[%clk 0:00:06]} 48. Re6+ {[%clk 0:00:03.9]} 48... Kd7 {[%clk
0:00:04.9]} 49. Rf6 {[%clk 0:00:03.7]} 49... d2 {[%clk 0:00:03.9]} 50. Rf1
{[%clk 0:00:04]} 50... Re8+ {[%clk 0:00:04.6]} 51. Kd4 {[%clk 0:00:04.5]} 51...
Re1 {[%clk 0:00:05.5]} 52. Rf7+ {[%clk 0:00:03]} 52... Ke8 {[%clk 0:00:05.3]}
53. Rf3 {[%clk 0:00:02]} 53... d1=Q+ {[%clk 0:00:05.5]} 54. Rd3 {[%clk
0:00:02.9]} 54... Qg4+ {[%clk 0:00:03.8]} 55. Kc3 {[%clk 0:00:03.4]} 55... Rc1+
{[%clk 0:00:04]} 56. Kd2 {[%clk 0:00:01.9]} 56... Qd1+ {[%clk 0:00:04.4]} 57.
Ke3 {[%clk 0:00:02.4]} 57... Qg1+ {[%clk 0:00:02.8]} 58. Kf3 {[%clk 0:00:02.5]}
58... Rf1+ {[%clk 0:00:03.2]} 59. Ke4 {[%clk 0:00:03.4]} 59... Re1+ {[%clk
0:00:03.4]} 60. Kd5 {[%clk 0:00:03.5]} 60... Rd1 {[%clk 0:00:03.7]} 61. Rxd1
{[%clk 0:00:03.3]} 61... Qxd1+ {[%clk 0:00:04.6]} 62. Kc4 {[%clk 0:00:03.9]}
62... Qa4+ {[%clk 0:00:04.8]} 63. b4 {[%clk 0:00:03.8]} 63... Qxa2+ {[%clk
0:00:05.2]} 64. Kc5 {[%clk 0:00:04.7]} 64... Kd7 {[%clk 0:00:03.7]} 65. g6
{[%clk 0:00:04.6]} 65... Qf2+ {[%clk 0:00:03.3]} 66. Kb5 {[%clk 0:00:04.6]}
66... Qxh4 {[%clk 0:00:04.2]} 67. Kb6 {[%clk 0:00:04.5]} 67... Qf6+ {[%clk
0:00:04.3]} 68. Ka7 {[%clk 0:00:04.6]} 68... Qxg6 {[%clk 0:00:05.2]} 69. b5
{[%clk 0:00:05.5]} 69... Kc7 {[%clk 0:00:05.1]} 70. Ka8 {[%clk 0:00:05.3]} 70...
Qg8+ {[%clk 0:00:04.9]} 71. Ka7 {[%clk 0:00:05.1]} 71... Qa2# {[%clk 0:00:05.8]}
0-1